fUST/lending_fUST_20240529
["ID","MTS","AMOUNT","RATE_DAILY","PERIOD"]
[328167638,1716988232946,-500.0,0.00029999,2]
[328167639,1716988232955,-349.52715229,0.00029999,2]
[328167640,1716988232967,-150.47284771,0.00029999,2]
[328167641,1716988232976,-8079.79417428,0.0003,2]
[328167642,1716988232985,-1470.13297801,0.0003,5]
[328167644,1716988234815,283.67803753,0.00022738,2]
[328167653,1716988238712,-500.0,0.00029999,2]
[328167654,1716988238722,-8007.43644991,0.0003,5]
[328167655,1716988238731,-2109.54099947,0.00030004,4]
[328167656,1716988238740,-201.73279014,0.0003001,2]
[328167657,1716988238749,-9836.13,0.00030026,3]
[328167658,1716988238759,-11195.62,0.00030026,3]
[328167659,1716988238768,-9329.68,0.00030026,3]
[328167660,1716988238777,-2116.32006058,0.00030034,4]
[328167661,1716988238786,-420.86590318,0.00030034,4]
[328167662,1716988238795,-942.81863451,0.00030034,4]
[328167663,1716988238804,-281.69123013,0.00030034,4]
[328167664,1716988238947,-221.89275894,0.00030034,4]
[328167665,1716988238959,-401.35997023,0.00030034,4]
[328167666,1716988238968,-164.30390821,0.00030034,4]
[328167667,1716988238977,-321.71546364,0.00030034,4]
[328167668,1716988238986,-155.81287671,0.00030034,4]
[328167669,1716988238995,-271.82588098,0.00030034,4]
[328167670,1716988239004,-16950.55228374,0.00030035,4]
[328167671,1716988239014,-201.73279014,0.00030035,2]
[328167672,1716988239023,-87187.5214371,0.00030036,5]
[328167673,1716988239032,-2000.0,0.00030036,2]
[328167674,1716988239041,-4229.78307947,0.00030098,2]
[328167675,1716988239050,-160.0,0.000301,2]
[328167676,1716988239059,-306.61834586,0.00030132,4]
[328167677,1716988239068,-386.42229976,0.00030132,4]
[328167678,1716988239077,-3058.33931758,0.00030132,4]
[328167679,1716988239087,-157.78100745,0.00030133,4]
[328167680,1716988239096,-1899.42263675,0.00030133,4]
[328167681,1716988239106,-661.27022412,0.00030134,7]
[328167682,1716988239115,-1870.54761155,0.00030134,4]
[328167683,1716988239124,-175.80560738,0.00030134,4]
[328167684,1716988239134,-736.16220566,0.00030134,4]
[328167685,1716988239143,-410.95040232,0.00030134,4]
[328167686,1716988239152,-836.37406668,0.00030134,4]
[328167687,1716988239161,-11070.84264273,0.00030134,4]
[328167688,1716988239170,-194.63259414,0.00030134,4]
[328167689,1716988239179,-476.5336738,0.00030134,4]
[328167690,1716988239188,-1043.8924433,0.00030134,4]
[328167691,1716988239197,-42004.14583686,0.00030134,2]
[328167692,1716988239209,-1217.68102459,0.00030134,4]
[328167694,1716988239218,-4697.73031858,0.00030134,2]
[328167695,1716988239228,-156.55408668,0.00030134,4]
[328167696,1716988239238,-2710.00140672,0.00030134,4]
[328167697,1716988239250,-2084.98980235,0.00030134,4]
[328167698,1716988239262,-847.88239694,0.00030134,4]
[328167699,1716988239272,-178.3031739,0.00030135,4]
[328167700,1716988239283,-1404.96125905,0.00030135,4]
[328167701,1716988239293,-8005.12123207,0.00030135,4]
[328167702,1716988239303,-1223.12532633,0.00030135,4]
[328167703,1716988239312,-154.93802479,0.00030136,4]
[328167704,1716988239321,-3376.24664759,0.00030136,2]
[328167705,1716988239330,-224.73843168,0.00030136,4]
[328167706,1716988239338,-151.0,0.00030136,2]
[328167707,1716988239347,-172.32,0.00030136,4]
[328167708,1716988239356,-151.0,0.00030136,2]
[328167709,1716988239365,-226.321402,0.00030136,2]
[328167710,1716988239375,-851.43,0.00030136,4]
[328167711,1716988239384,-500.0,0.00030136,4]
[328167712,1716988239393,-151.0,0.00030136,2]
[328167713,1716988239402,-151.0,0.00030136,2]
[328167714,1716988239411,-151.0,0.00030136,2]
[328167715,1716988239421,-151.0,0.00030136,2]
[328167716,1716988239430,-500.0,0.00030136,4]
[328167717,1716988239438,-162.738025,0.00030136,2]
[328167718,1716988239447,-162.738025,0.00030136,2]
[328167719,1716988239458,-162.738025,0.00030136,2]
[328167720,1716988239467,-162.738025,0.00030136,2]
[328167721,1716988239477,-488.43267025,0.00030136,4]
[328167722,1716988239486,-500.0,0.00030136,4]
[328167723,1716988239499,-500.0,0.00030136,4]
[328167724,1716988239508,-500.0,0.00030136,4]
[328167725,1716988239518,-381.49815064,0.00030136,4]
[328167726,1716988239528,-14925.33,0.00030136,5]
[328167727,1716988239538,-14925.33,0.00030136,5]
[328167728,1716988239547,-14925.33,0.00030136,5]
[328167729,1716988239556,-14925.33,0.00030136,5]
[328167730,1716988239565,-14925.33,0.00030136,5]
[328167731,1716988239576,-14925.33,0.00030136,5]
[328167732,1716988239586,-14925.33,0.00030136,5]
[328167733,1716988239595,-14925.33,0.00030136,5]
[328167734,1716988239604,-151.0,0.00030137,2]
[328167735,1716988239613,-151.0,0.00030137,2]
[328167736,1716988239622,-244.250436,0.0003031,2]
[328167737,1716988239631,-606.98971,0.0003031,2]
[328167738,1716988239640,-851.43,0.0003041,4]
[328167739,1716988239649,-393.0,0.0003041,4]
[328167740,1716988239658,-851.43,0.00030684,4]
[328167741,1716988239667,-151.0,0.00030814,7]
[328167742,1716988239676,-151.0,0.00030814,7]
[328167743,1716988239686,-851.43,0.00030958,4]
[328167744,1716988239695,-242.0,0.00031,4]
[328167745,1716988239705,-851.43,0.00031232,4]
[328167746,1716988239714,-292.5204,0.00031248,30]
[328167747,1716988239724,-851.43,0.00031506,4]
[328167748,1716988239733,-851.43,0.0003178,4]
[328167749,1716988239742,-151.0,0.0003186,7]
[328167750,1716988239751,-151.0,0.0003186,7]
[328167751,1716988239761,-520.75703956,0.00032,4]
[328167752,1716988239770,-2000.0,0.00032,4]
[328167753,1716988239779,-300.0,0.00032,5]
[328167754,1716988239788,-449.01034019,0.00032,4]
[328167755,1716988239798,-851.43,0.00032054,4]
[328167756,1716988239807,-513.16919943,0.00032328,4]
[328167762,1716988242075,273.37336231,9.9e-05,2]
[328167763,1716988242550,-978.76021341,0.00030036,2]
[328167764,1716988242559,-338.26080057,0.00032328,4]
[328167765,1716988242568,-579.88233659,0.000324,2]
[328167766,1716988242582,-9420.11766341,0.000324,2]
[328167767,1716988242592,-1002.72930285,0.000325,2]
[328167768,1716988242602,-628.8336885,0.00032548,2]
[328167769,1716988242612,-204.8154073,0.00032548,2]
[328167770,1716988242622,-204.8154073,0.00032548,2]
[328167771,1716988242631,-204.8154073,0.00032548,2]
[328167772,1716988242640,-204.8154073,0.00032548,2]
[328167773,1716988242650,-204.4223833,0.00032548,2]
[328167774,1716988242659,-851.43,0.00032602,4]
[328167775,1716988242669,-279.32435269,0.00032636,2]
[328167776,1716988242678,-151.0,0.00032875,2]
[328167777,1716988242687,-151.0,0.00032875,2]
[328167778,1716988242696,-151.0,0.00032875,2]
[328167779,1716988242706,-151.0,0.00032875,2]
[328167780,1716988242715,-162.738025,0.00032875,2]
[328167781,1716988242724,-162.738025,0.00032875,2]
[328167782,1716988242736,-162.738025,0.00032875,2]
[328167783,1716988242746,-162.738025,0.00032875,2]
[328167784,1716988242755,-851.43,0.00032876,4]
[328167785,1716988242765,-12290.57185205,0.00032887,5]
[328167786,1716988242777,-251.60027395,0.00032887,5]
[328167807,1716988246740,-649.13818402,0.00032877,3]
[328167808,1716988247066,-806.66035076,0.00032877,3]
[328167809,1716988266644,156.8699674,9.999e-05,2]
[328167810,1716988291524,758.57976486,9.999e-05,2]
[328167811,1716988292312,302.71490703,9.999e-05,2]
[328167817,1716988325043,156.68308505,9.999e-05,2]
[328167818,1716988341657,154.84515485,9.999e-05,2]
[328167819,1716988353482,292.07469675,0.00020913,2]
[328167820,1716988359650,156.21112799,9.999e-05,2]
[328167821,1716988360712,224.78412403,9.999e-05,2]
[328167822,1716988378723,224.65795294,9.999e-05,2]
[328167829,1716988669131,1583.63148978,0.00020913,2]
[328167830,1716988674871,685.47338776,0.00020913,2]
[328167831,1716988678774,224.73843168,9.999e-05,2]
[328167832,1716988689763,500.0,0.000275,30]
[328167833,1716988694404,283.67803753,0.00020913,2]
[328167834,1716988706854,15615.13948148,0.00020913,2]
[328167835,1716988708075,273.37336231,9.9e-05,2]
[328167836,1716988709091,7904.3508113,0.00020913,2]
[328167837,1716988711310,11074.66768057,0.00020913,2]
[328167838,1716988712061,500.0,0.000275,30]
[328167839,1716988714489,2109.94083119,0.00020913,2]
[328167840,1716988718618,273.37336231,9.9e-05,2]
[328167841,1716988725798,154.84515485,9.999e-05,2]
[328167842,1716988726549,2117.39226672,0.00020913,2]
[328167843,1716988728502,273.37336231,9.9e-05,2]
[328167844,1716988736161,9572.33351784,0.00020913,2]
[328167845,1716988739182,273.37336231,9.9e-05,2]
[328167846,1716988742906,302.71490703,0.00020913,2]
[328167847,1716988749518,273.37336231,9.9e-05,2]
[328167848,1716988750836,154.84515485,9.999e-05,2]
[328167849,1716988750977,500.0,0.000275,30]
[328167850,1716988756891,239.12476103,0.00020913,2]
[328167851,1716988761125,238.28626814,9.9e-05,2]
[328167852,1716988771544,500.0,0.000275,30]
[328167853,1716988785725,156.68308505,0.00020913,2]
[328167890,1716989031157,1980.05193058,0.00020913,2]
[328167891,1716989100192,1583.63148978,0.00020913,2]
[328167892,1716989120077,224.73843168,0.00020913,2]
[328167893,1716989149752,3377.08356661,0.00020913,2]
[328167895,1716989163754,1173.20393434,0.00020913,2]
[328167896,1716989174446,685.47338776,0.00020913,2]
[328167897,1716989182052,283.67803753,0.00020913,2]
[328167898,1716989212165,-262.387399,0.00024384,2]
[328167899,1716989212187,-53.13721245,0.00024384,2]
[328167900,1716989226154,-493.15352655,0.00024384,2]
[328167901,1716989226175,-425.46752422,0.00024664,2]
[328167902,1716989226195,-2462.52009137,0.000247,9]
[328167903,1716989244109,-1416.68466484,0.000247,9]
[328167904,1716989244141,-656.57482448,0.000247,9]
[328167905,1716989248112,-159.22743012,0.000247,9]
[328167906,1716989248178,-421.217252,0.000247,9]
[328167915,1716989355131,-181.96046936,0.000247,9]
[328167916,1716989355153,-166.666666,0.00025487,2]
[328167917,1716989355175,-250.0,0.00026014,2]
[328167918,1716989355196,-188.0354416,0.00026121,2]
[328167919,1716989355219,-166.666666,0.00026182,2]
[328167920,1716989355240,-166.666666,0.00026877,2]
[328167921,1716989365958,685.47338776,0.00026574,2]
[328167924,1716989369564,283.67803753,0.00026574,2]
[328167940,1716989434626,-500.0,0.000275,2]
[328167941,1716989434636,-166.666666,0.00027572,2]
[328167942,1716989434645,-37.0969775,0.00028267,2]
[328167943,1716989434657,-129.5696885,0.00028267,2]
[328167944,1716989434666,-166.666666,0.00028962,2]
[328167945,1716989434675,-151.0,0.00029791,7]
[328167946,1716989434685,-684.28424022,0.00030004,4]
[328167947,1716989434696,-1424.85692753,0.00030004,4]
[328167948,1716989434705,-265.80163812,0.00030026,2]
[328167949,1716989434714,-155.13033389,0.00030034,4]
[328167950,1716989434723,-521.94946032,0.00030034,4]
[328167951,1716989434733,-316.60621238,0.00030034,4]
[328167952,1716989434743,-281.85841065,0.00030034,4]
[328167953,1716989434752,-2161.48567947,0.00030034,4]
[328168015,1716989438141,-2723.33049961,0.00030034,4]
[328168016,1716989438151,-207.82716215,0.00030034,4]
[328168017,1716989438161,-155.03345058,0.00030034,4]
[328168018,1716989438171,-1270.06428607,0.00030034,4]
[328168019,1716989438180,-155.1083591,0.00030034,4]
[328168020,1716989438190,-302.25028091,0.00030034,4]
[328168021,1716989438199,-155.02714031,0.00030034,4]
[328168022,1716989438209,-211.39536996,0.00030034,4]
[328168023,1716989438218,-187.38717571,0.00030034,4]
[328168024,1716989438227,-339.2121941,0.00030034,2]
[328168025,1716989438237,-500.0,0.00030034,2]
[328168026,1716989438246,-500.0,0.00030034,2]
[328168027,1716989438255,-500.0,0.00030034,2]
[328168028,1716989438265,-500.0,0.00030034,2]
[328168029,1716989438274,-500.0,0.00030034,2]
[328168030,1716989438285,-500.0,0.00030034,2]
[328168031,1716989438295,-500.0,0.00030034,2]
[328168032,1716989438304,-286.86712536,0.00030034,2]
[328168033,1716989438313,-500.0,0.00030034,2]
[328168034,1716989438323,-500.0,0.00030034,2]
[328168035,1716989438332,-500.0,0.00030034,2]
[328168036,1716989438446,-386.46135748,0.00030034,2]
[328168037,1716989438484,-500.0,0.00030034,2]
[328168038,1716989438494,-500.0,0.00030034,2]
[328168039,1716989438503,-500.0,0.00030034,2]
[328168040,1716989438513,-500.0,0.00030034,2]
[328168041,1716989438522,-500.0,0.00030034,2]
[328168042,1716989438532,-500.0,0.00030034,2]
[328168043,1716989438541,-500.0,0.00030034,2]
[328168044,1716989438550,-161.07605931,0.00030035,4]
[328168045,1716989438560,-750.57789015,0.00030035,4]
[328168046,1716989438569,-6526.68823379,0.00030035,4]
[328168047,1716989438579,-161.21904888,0.00030036,2]
[328168048,1716989438588,-11947.65,0.00030126,3]
[328168049,1716989438597,-9956.37,0.00030126,3]
[328168050,1716989438607,-381.14131722,0.00030134,4]
[328168051,1716989438617,-390.63597409,0.00030135,4]
[328168052,1716989438626,-500.0,0.00030136,4]
[328168053,1716989438636,-488.43267025,0.00030136,4]
[328168054,1716989438645,-172.32,0.00030136,4]
[328168055,1716989438654,-766.38,0.00030136,4]
[328168056,1716989438664,-500.0,0.00030136,4]
[328168057,1716989438673,-14402.74,0.00030136,5]
[328168058,1716989438683,-14402.74,0.00030136,5]
[328168059,1716989438692,-14402.74,0.00030136,5]
[328168060,1716989438701,-14402.74,0.00030136,5]
[328168061,1716989438711,-14402.74,0.00030136,5]
[328168062,1716989438720,-14402.74,0.00030136,5]
[328168063,1716989438730,-14402.74,0.00030136,5]
[328168064,1716989438739,-14402.74,0.00030136,5]
[328168065,1716989438748,-500.0,0.00030136,4]
[328168066,1716989438757,-500.0,0.00030136,4]
[328168067,1716989438766,-500.0,0.00030136,4]
[328168068,1716989438775,-262.387399,0.0003031,2]
[328168069,1716989438786,-546.290739,0.0003031,2]
[328168070,1716989438796,-766.38,0.0003041,4]
[328168071,1716989438804,-393.0,0.0003041,4]
[328168072,1716989438814,-500.0,0.0003041,4]
[328168073,1716989438823,-766.38,0.00030684,4]
[328168074,1716989438833,-508.0243427,0.00030684,4]
[328168075,1716989438842,-151.0,0.00030833,7]
[328168076,1716989438851,-151.0,0.00030833,7]
[328168077,1716989438861,-766.38,0.00030958,4]
[328168078,1716989438870,-242.0,0.00031,4]
[328168079,1716989438880,-766.38,0.00031232,4]
[328168080,1716989438893,-500.0,0.00031239,4]
[328168081,1716989438902,-922.4720001,0.00031241,4]
[328168082,1716989438911,-381.49815064,0.00031243,4]
[328168083,1716989438922,-6870.02000341,0.00031246,5]
[328168084,1716989438931,-1734.62079356,0.0003125,2]
[328168085,1716989438942,-292.5204,0.00031257,30]
[328168086,1716989438952,-766.38,0.00031506,4]
[328168087,1716989438964,-766.38,0.0003178,4]
[328168088,1716989438974,-151.0,0.00031875,7]
[328168089,1716989438983,-151.0,0.00031875,7]
[328168090,1716989438992,-300.0,0.00032,5]
[328168091,1716989439002,-449.01034019,0.00032,4]
[328168092,1716989439012,-766.38,0.00032054,4]
[328168093,1716989439021,-265.8016381,0.00032151,2]
[328168094,1716989439033,-330.63511206,0.00032327,7]
[328168095,1716989439043,-11997.5511859,0.00032327,5]
[328168096,1716989439056,-2405.1888141,0.00032327,5]
[328168097,1716989439066,-766.38,0.00032328,4]
[328168098,1716989439076,-150.397,0.00032469,7]
[328168099,1716989439086,-619.3341859,0.00032602,4]
[328168100,1716989439098,-147.0458141,0.00032602,4]
[328168101,1716989439108,-3415.53811099,0.00032785,5]
[328168102,1716989439119,-31587.00357355,0.00032785,5]
[328168103,1716989439129,-160.0,0.000328,7]
[328168104,1716989439139,-500.0,0.00032814,2]
[328168105,1716989439148,-14402.74,0.00032873,5]
[328168106,1716989439158,-842.70864205,0.00032875,4]
[328168107,1716989439168,-766.38,0.00032876,4]
[328168108,1716989439178,-520.75703956,0.00032877,4]
[328168109,1716989439188,-156.63274877,0.00032881,4]
[328168110,1716989439198,-284.01585024,0.00032881,4]
[328168111,1716989439207,-489.09571993,0.00032881,4]
[328168112,1716989439218,-155.00765012,0.00032882,4]
[328168113,1716989439228,-455.97225656,0.00032882,4]
[328168114,1716989439238,-523.24502154,0.00032882,4]
[328168115,1716989439247,-1340.40220178,0.00032882,4]
[328168116,1716989439257,-602.26554202,0.00032882,4]
[328168117,1716989439266,-551.40633265,0.00032882,4]
[328168118,1716989439276,-836.46602351,0.00032883,4]
[328168119,1716989439287,-15227.7800684,0.00032883,4]
[328168120,1716989439296,-14402.74,0.00032884,5]
[328168121,1716989439306,-164.14993741,0.00032885,4]
[328168122,1716989439316,-410.85900029,0.00032885,4]
[328168123,1716989439325,-155.93650779,0.00032885,4]
[328168124,1716989439334,-1352.0716296,0.00032885,4]
[328168125,1716989439343,-847.98525355,0.00032885,4]
[328168126,1716989439352,-945.99447756,0.00032885,4]
[328168127,1716989439362,-175.65361975,0.00032885,4]
[328168128,1716989439371,-514.10105523,0.00032885,4]
[328168129,1716989439380,-1899.42263675,0.00032885,4]
[328168130,1716989439389,-2679.29551735,0.00032885,4]
[328168131,1716989439399,-1888.54769992,0.00032885,4]
[328168132,1716989439409,-310.39691172,0.00032885,2]
[328168133,1716989439418,-154.95892803,0.00032885,4]
[328168134,1716989439428,-1869.93107944,0.00032885,4]
[328168135,1716989439437,-222.15396699,0.00032885,4]
[328168136,1716989439447,-758.41658575,0.00032885,4]
[328168137,1716989439457,-8005.12123207,0.00032885,4]
[328168138,1716989439466,-773.36662199,0.00032885,4]
[328168139,1716989439476,-1223.12532633,0.00032886,4]
[328168140,1716989439485,-14402.74,0.00032886,5]
[328168141,1716989439495,-14402.74,0.00032886,5]
[328168142,1716989439504,-151.0,0.00032887,2]
[328168143,1716989439514,-151.0,0.00032887,2]
[328168144,1716989439526,-151.0,0.00032887,2]
[328168145,1716989439540,-151.0,0.00032887,2]
[328168146,1716989439550,-14402.74,0.00032892,5]
[328168147,1716989439560,-14402.74,0.00032892,5]
[328168148,1716989439570,-14402.74,0.00032892,5]
[328168149,1716989439580,-14402.74,0.00032892,5]
[328168150,1716989439591,-14402.74,0.00032892,5]
[328168151,1716989439603,-7129.64715853,0.00032892,5]
[328168152,1716989439615,-943.51656212,0.00032892,5]
[328168153,1716989439627,-479.35151589,0.00032892,5]
[328168154,1716989439640,-1790.00368819,0.00032892,5]
[328168155,1716989439667,166.666666,0.0002668,2]
[328168158,1716989442083,-166.666666,0.00027408,2]
[328168159,1716989442092,-166.666666,0.00028135,2]
[328168160,1716989442101,-166.666666,0.00028863,2]
[328168161,1716989442110,-166.666666,0.0002959,2]
[328168162,1716989442120,-166.666666,0.00030317,2]
[328168163,1716989442129,-4060.22107527,0.00032892,5]
[328168164,1716989442138,-14402.74,0.00032892,5]
[328168165,1716989442147,-14402.74,0.00032892,5]
[328168166,1716989442156,-6884.96250679,0.00032892,5]
[328168167,1716989442167,-5022.15087296,0.00032892,5]
[328168168,1716989442179,-2495.62662025,0.00032892,5]
[328168169,1716989442188,-13686.05564362,0.00032892,5]
[328168170,1716989442225,-716.68435638,0.00032892,5]
[328168171,1716989442234,-5500.68497663,0.00032892,5]
[328168226,1716989443584,-8902.07618379,0.00032892,5]
[328168228,1716989443593,-209.692281,0.00032893,2]
[328168229,1716989443602,-151.0,0.00032894,2]
[328168231,1716989443611,-151.0,0.00032894,2]
[328168233,1716989443621,-414.981963,0.00032894,2]
[328168235,1716989443630,-414.981963,0.00032894,2]
[328168237,1716989443639,-183.871099,0.00032894,2]
[328168239,1716989443648,-183.871099,0.00032894,2]
[328168242,1716989443657,-461.72148996,0.00032897,7]
[328168243,1716989443666,-1198.1575418,0.00032897,2]
[328168245,1716989443675,-20578.0132434,0.00032897,30]
[328168250,1716989443697,-204.23433222,0.00032897,30]
[328168253,1716989443708,-41309.7830579,0.00032897,30]
[328168319,1716989461624,10421.01486645,9.999e-05,2]
[328168320,1716989461647,102.02213314,9.999e-05,2]
[328168321,1716989469354,1153.28512896,9.999e-05,2]
[328168322,1716989481611,2597.59984325,9.999e-05,2]
[328168323,1716989483702,3982.37422665,0.00021,2]
[328168326,1716989486682,173.99872366,9.999e-05,2]
[328168327,1716989487846,2900.13287437,9.999e-05,2]
[328168329,1716989488179,301.72923525,9.999e-05,2]
[328168333,1716989495964,529.26882942,9.999e-05,2]
[328168336,1716989504990,154.82968734,9.999e-05,2]
[328168343,1716989535258,154.82968734,9.999e-05,2]
[328168344,1716989546386,154.82968734,9.999e-05,2]
[328168345,1716989550426,273.37336231,9.9e-05,2]
[328168346,1716989557401,720.99508433,9.999e-05,2]
[328168347,1716989560356,273.37336231,9.9e-05,2]
[328168348,1716989607980,194.0753606,0.00020913,2]
[328168350,1716989747090,1871.01679575,0.00020913,2]
[328168351,1716989773238,551.40633265,0.00020913,2]
[328168352,1716989773923,523.40016496,0.00020913,2]
[328168353,1716989774556,411.05184853,0.00020913,2]
[328168354,1716989784306,514.49757357,0.00020913,2]
[328168355,1716989784690,456.0641796,0.00020913,2]
[328168356,1716989785720,1980.05193058,0.00020913,2]
[328168357,1716989787960,836.65686665,0.00020913,2]
[328168358,1716989790343,1900.31793063,0.00020913,2]
[328168359,1716989791362,154.82968734,0.00020913,2]
[328168360,1716989798682,1352.47027716,0.00020913,2]
[328168361,1716989814935,154.82968734,0.00020913,2]
[328168363,1716989921438,-9738.59558134,0.0002091,2]
[328168368,1716990204385,200.0,0.00032897,120]
[328168369,1716990205617,396.45928955,9.887e-05,2]
[328168370,1716990219215,2637.46785736,7.012e-05,2]
[328168371,1716990256437,3377.08356661,7.012e-05,2]
[328168372,1716990274437,1172.62354248,7.012e-05,2]
[328168373,1716990311338,156.89663589,7.012e-05,2]
[328168374,1716990331332,156.84329891,7.012e-05,2]
[328168375,1716990434167,-461.05611801,9.955e-05,2]
[328168376,1716990446138,-156.63274877,9.953e-05,2]
[328168377,1716990446161,-181.68216516,9.954e-05,2]
[328168378,1716990446183,-316.86475702,9.954e-05,2]
[328168379,1716990446205,-529.26882942,9.954e-05,2]
[328168380,1716990446226,-1572.14640103,9.955e-05,2]
[328168381,1716990446252,-154.81422293,9.955e-05,2]
[328168382,1716990446275,-312.46261952,9.955e-05,2]
[328168383,1716990502198,-154.81422293,9.946e-05,2]
[328168384,1716990502219,-292.07469675,9.947e-05,2]
[328168385,1716990502243,-164.33784746,9.948e-05,2]
[328168386,1716990502266,-194.73719804,9.948e-05,2]
[328168387,1716990502290,-371.81130833,9.948e-05,2]
[328168388,1716990502312,-59473.83201727,9.948e-05,2]
[328168389,1716990502337,-19275.03631944,9.949e-05,2]
[328168390,1716990502358,-411.05184853,9.95e-05,2]
[328168391,1716990502383,-1900.31793063,9.95e-05,2]
[328168392,1716990502403,-1340.69501905,9.95e-05,2]
[328168393,1716990502424,-283.67803753,9.95e-05,2]
[328168394,1716990502444,-2682.52983983,9.95e-05,2]
[328168395,1716990502466,-488.60997064,9.951e-05,2]
[328168396,1716990502499,-231.13404386,9.951e-05,2]
[328168397,1716990502522,-2109.94083119,9.951e-05,2]
[328168398,1716990502544,-215.95975088,9.951e-05,2]
[328168399,1716990502566,-1153.28512896,9.951e-05,2]
[328168400,1716990502587,-7904.3508113,9.951e-05,2]
[328168401,1716990502609,-551.40633265,9.952e-05,2]
[328168402,1716990502633,-685.47338776,9.952e-05,2]
[328168403,1716990502653,-758.57976486,9.952e-05,2]
[328168404,1716990502674,-302.71490703,9.952e-05,2]
[328168405,1716990502694,-175.85185452,9.952e-05,2]
[328168406,1716990502714,-1498.63618319,9.953e-05,2]
[328168407,1716990502736,-154.81422293,9.953e-05,2]
[328168408,1716990502756,-155.09280497,9.953e-05,2]
[328168409,1716990502777,-316.62623806,9.953e-05,2]
[328168410,1716990502798,-156.63274877,9.953e-05,2]
[328168411,1716990502819,-181.55312179,9.953e-05,2]
[328168412,1716990502841,-529.26882942,9.953e-05,2]
[328168413,1716990502864,-2031.43265952,9.953e-05,2]
[328168414,1716990502886,-1980.05193058,9.954e-05,2]
[328168415,1716990502908,-2795.91791372,9.956e-05,2]
[328168416,1716990502931,-151.00000096,9.957e-05,2]
[328168417,1716990502952,-154.82968734,9.982e-05,2]
[328168418,1716990502974,-154.82968734,9.982e-05,2]
[328168419,1716990505135,872.67,0.00010959,2]
[328168424,1716990514062,2678.65904891,9.947e-05,2]
[328168425,1716990516192,1340.69501905,9.999e-05,2]
[328168426,1716990524822,273.37336231,9.9e-05,2]
[328168427,1716990533338,273.37336231,9.9e-05,2]
[328168430,1716990543441,273.37336231,9.9e-05,2]
[328168431,1716990545105,-7841.61953453,0.00012706,2]
[328168432,1716990545125,-3826.6670317,0.00012707,2]
[328168433,1716990545148,-452.3052543,0.00013699,2]
[328168434,1716990545168,-291.88858463,0.00014572,2]
[328168435,1716990545188,-1002.98464462,0.00015581,2]
[328168436,1716990554133,-1792.93326909,0.00015581,2]
[328168437,1716990554160,-962.56293886,0.00019234,2]
[328168438,1716990554183,-2109.94083119,0.0001941,2]
[328168439,1716990554204,-1339.54283314,0.00019429,2]
[328168440,1716990554227,-207.82716215,0.0001943,2]
[328168441,1716990554250,-281.85841065,0.0001943,2]
[328168442,1716990554280,-691.03459692,0.0001943,2]
[328168443,1716990554304,-1980.05193058,0.0001943,2]
[328168444,1716990554326,-551.0316719,0.0001943,2]
[328168445,1716990554350,-1898.05310971,0.0001943,2]
[328168446,1716990554372,-758.57976486,0.0001943,2]
[328168447,1716990554394,-283.67803753,0.0001943,2]
[328168448,1716990554418,-302.58444821,0.0001943,2]
[328168449,1716990554440,-488.25536986,0.0001943,2]
[328168450,1716990554460,-155.13929102,0.0001943,2]
[328168451,1716990554481,-685.24407498,0.0001943,2]
[328168452,1716990554502,-230.97762041,0.0001943,2]
[328168453,1716990554524,-194.57512232,0.0001943,2]
[328168454,1716990554545,-411.05184853,0.0001943,2]
[328168455,1716990554567,-164.33784746,0.0001943,2]
[328168456,1716990554588,-1153.28512896,0.0001943,2]
[328168457,1716990554610,-175.58471915,0.0001943,2]
[328168458,1716990554631,-528.01963754,0.0001943,2]
[328168459,1716990554651,-215.82456551,0.0001943,2]
[328168460,1716990554676,-156.54342855,0.0001943,2]
[328168461,1716990554697,-1497.82893423,0.0001943,2]
[328168462,1716990554719,-371.81130833,0.00019431,2]
[328168463,1716990554741,-155.09280497,0.00019431,2]
[328168464,1716990554764,-44789.00970455,0.00019431,2]
[328168467,1716990567292,-154.84515485,0.0001943,2]
[328168468,1716990567315,-841.45654139,0.0001943,2]
[328168469,1716990567335,-14684.82231272,0.00019431,2]
[328168470,1716990567357,-15259.8077634,0.00019431,2]